bitfinex/quotes_BTCUSD_20260104
["timestamp","ask_amount","ask_price","bid_price","bid_amount"]
[1767535710066,9.08e-05,91247.0,91245.0,0.04716672]
[1767535710603,9.08e-05,91247.0,91245.0,0.04712248]
[1767535711265,0.01095902,91249.0,91245.0,0.04712248]
[1767535711496,0.01095902,91249.0,91246.0,0.04738618]
[1767535712432,0.06575503,91248.0,91244.0,0.0001516]
[1767535712631,0.000999,91246.0,91244.0,0.00025974]
[1767535712858,0.01575346,91250.0,91246.0,0.04738618]
[1767535713168,0.25205154,91253.0,91246.0,0.04738618]
[1767535713169,0.03287854,91253.0,91250.0,0.04738618]
[1767535713471,0.0109589,91250.0,91246.0,0.04738618]
[1767535713771,0.06575378,91250.0,91246.0,0.04738618]
[1767535713949,0.0109589,91250.0,91246.0,0.04738618]
[1767535714271,0.06575423,91249.0,91246.0,0.04738618]
[1767535714469,0.05479632,91247.0,91246.0,0.04738618]
[1767535714673,0.05479592,91248.0,91246.0,0.04738618]
[1767535716065,0.06575426,91249.0,91246.0,0.04738618]
[1767535716858,0.01095902,91249.0,91245.0,0.0109595]
[1767535717261,0.01095914,91248.0,91244.0,0.01121936]
[1767535717472,0.06575489,91248.0,91244.0,0.01121936]
[1767535717960,0.06575444,91249.0,91245.0,0.04925517]
[1767535718372,0.0109589,91250.0,91245.0,0.04925517]
[1767535718551,0.01095902,91249.0,91245.0,0.04925517]
[1767535718755,0.06575504,91248.0,91245.0,0.04925517]
[1767535719151,0.06575418,91249.0,91245.0,0.04925517]
[1767535719560,0.05479449,91251.0,91245.0,0.06021467]
[1767535719760,0.05479452,91250.0,91249.0,0.000999]
[1767535719967,0.06575342,91250.0,91245.0,0.11501169]
[1767535720161,0.0109589,91250.0,91246.0,0.01095938]
[1767535720566,0.06575347,91250.0,91246.0,0.01095938]
[1767535721065,0.06575347,91250.0,91245.0,0.11501189]
[1767535721731,0.06575432,91249.0,91245.0,0.06021467]
[1767535722028,0.06575432,91249.0,91245.0,0.04925517]
[1767535722190,0.06575432,91249.0,91245.0,0.06021467]
[1767535722389,0.01095902,91249.0,91245.0,0.11501212]
[1767535722834,0.06575369,91250.0,91245.0,0.11501212]
[1767535723203,0.01095902,91249.0,91245.0,0.06021467]
[1767535723405,0.06575324,91251.0,91245.0,0.06021467]
[1767535723599,0.06575351,91250.0,91245.0,0.11501213]
[1767535723820,0.01095902,91249.0,91245.0,0.11501213]
[1767535724029,0.0657542,91249.0,91245.0,0.11501213]
[1767535724229,0.01095902,91249.0,91245.0,0.11501213]
[1767535724926,0.06575423,91249.0,91245.0,0.06021467]
[1767535725336,0.06575423,91249.0,91244.0,0.06601692]
[1767535725544,0.06575423,91249.0,91245.0,0.0109595]
[1767535725949,0.06575423,91249.0,91244.0,0.06601692]
[1767535726149,0.06575423,91249.0,91244.0,0.11527209]
[1767535726351,0.01095914,91248.0,91244.0,0.01121936]
[1767535726518,0.04711378,91247.0,91243.0,0.03793752]
[1767535726720,0.04196431,91245.0,91238.0,0.01096034]
[1767535726940,0.06575645,91246.0,91240.0,0.06576009]
[1767535727234,0.06575647,91246.0,91241.0,0.06575974]
[1767535727621,0.04196431,91245.0,91241.0,0.06575974]
[1767535727817,0.04196431,91244.0,91240.0,0.06575956]
[1767535728018,0.04196431,91244.0,91241.0,0.06575961]
[1767535728458,0.04196431,91244.0,91242.0,0.05479929]
[1767535728637,0.01095938,91246.0,91243.0,0.04925517]
[1767535729140,0.06575631,91246.0,91243.0,0.04925517]
[1767535729744,0.01095938,91246.0,91243.0,0.04925517]
[1767535729961,0.06575559,91247.0,91243.0,0.04925517]
[1767535730880,0.06575487,91248.0,91243.0,0.06021491]
[1767535731443,0.01095878,91251.0,91246.0,0.06021455]
[1767535731646,0.06575304,91251.0,91247.0,0.06021443]
[1767535732265,0.01095854,91253.0,91251.0,0.000999]
[1767535732461,0.05479331,91252.0,91251.0,0.000999]
[1767535732662,0.01095878,91251.0,91247.0,0.01095926]
[1767535732846,0.04196431,91250.0,91246.0,0.03475094]
[1767535733254,0.04196431,91250.0,91247.0,0.05479626]
[1767535733455,0.0109589,91250.0,91245.0,0.06575693]
[1767535733650,0.0109589,91250.0,91246.0,0.01095938]
[1767535734124,0.06575343,91250.0,91246.0,0.01095938]
[1767535734446,0.0109589,91250.0,91247.0,0.04925517]
[1767535734647,0.06575273,91251.0,91247.0,0.04925517]
[1767535734890,0.0109589,91250.0,91247.0,0.04925517]
[1767535735428,0.0109589,91250.0,91245.0,0.06575686]
[1767535735429,0.01095806,91257.0,91251.0,0.04925517]
[1767535735585,0.04711378,91256.0,91252.0,0.01095866]
[1767535735790,0.04711378,91255.0,91251.0,0.06575243]
[1767535736212,0.04711378,91255.0,91252.0,0.01095866]
[1767535736611,0.04711378,91255.0,91251.0,0.06575243]
[1767535736612,0.05807208,91255.0,91251.0,0.06575243]
[1767535736817,0.04711378,91255.0,91252.0,0.06575192]
[1767535736981,0.04711378,91255.0,91252.0,0.01095866]
[1767535738105,0.04711378,91255.0,91251.0,0.06575243]
[1767535738505,0.04711378,91255.0,91252.0,0.01095866]
[1767535738933,0.04711378,91255.0,91253.0,0.05479271]
[1767535739638,0.04711378,91255.0,91252.0,0.06575084]
[1767535739842,0.06574841,91257.0,91252.0,0.06575084]
[1767535740134,0.06574841,91257.0,91253.0,0.04925517]
[1767535740316,0.07670929,91259.0,91254.0,0.05479211]
[1767535740518,0.02192,91259.0,91256.0,0.05479059]
[1767535740718,0.02192,91259.0,91256.0,0.06574877]
[1767535740913,0.02192,91259.0,91256.0,0.01095818]
[1767535741095,0.02192,91259.0,91255.0,0.0608782]
[1767535741300,0.02192,91259.0,91255.0,0.06059205]
[1767535741721,0.02192,91259.0,91255.0,0.11538352]
[1767535741927,0.05478977,91258.0,91256.0,0.0499199]
[1767535742135,0.03287782,91259.0,91256.0,0.0499199]
[1767535742535,0.02192,91259.0,91256.0,0.06087808]
[1767535743355,0.06574233,91266.0,91262.0,0.0499199]
[1767535743668,0.02192,91265.0,91262.0,0.0499199]
[1767535743829,0.05478201,91271.0,91267.0,0.06087676]
[1767535744034,0.02192,91270.0,91267.0,0.01095686]
[1767535744199,0.02192,91270.0,91266.0,0.06574181]
[1767535744397,0.00049832,91273.0,91266.0,0.01095698]
[1767535744597,0.02192,91272.0,91270.0,0.0119555]
[1767535744857,0.02192,91272.0,91270.0,0.06673744]
[1767535745029,0.02199506,91272.0,91271.0,0.05478191]
[1767535745233,0.0109589,91271.0,91270.0,0.06569188]
[1767535745411,0.0109589,91271.0,91270.0,0.05473298]
[1767535745629,0.0001516,91276.0,91275.0,0.05477951]
[1767535745839,0.0220716,91276.0,91275.0,0.05477951]
[1767535746743,0.0109559,91275.0,91270.0,0.0109565]
[1767535746906,0.01095602,91274.0,91270.0,0.0109565]
[1767535747254,0.0547819,91272.0,91266.0,0.05478434]
[1767535747484,0.06573615,91274.0,91269.0,0.06573968]
[1767535747815,0.03302738,91276.0,91271.0,0.06573818]
[1767535748017,0.08780666,91276.0,91271.0,0.06573818]
[1767535748192,0.0220716,91276.0,91272.0,0.06573741]
[1767535748510,0.0220716,91276.0,91273.0,0.06573681]
[1767535748708,0.0220716,91276.0,91273.0,0.01095614]
[1767535748874,0.0210726,91276.0,91273.0,0.0657368]
[1767535749084,0.0210726,91276.0,91274.0,0.0547799]
[1767535749285,0.0210726,91276.0,91275.0,0.0499199]
[1767535749489,0.02192,91278.0,91277.0,0.0499199]
[1767535749821,0.06573308,91279.0,91275.0,0.0109559]
[1767535749822,0.01095542,91279.0,91276.0,0.0499199]
[1767535749985,0.0328753,91280.0,91276.0,0.0499199]
[1767535750336,0.02192,91280.0,91276.0,0.11565436]
[1767535750706,0.02192,91280.0,91277.0,0.01095566]
[1767535750877,0.02192,91280.0,91277.0,0.11565371]
[1767535751231,0.02192,91280.0,91277.0,0.06087556]
[1767535751232,0.020921,91280.0,91277.0,0.06087556]
[1767535752022,0.020921,91280.0,91277.0,0.0499199]
[1767535752205,0.08665284,91280.0,91277.0,0.0499199]
[1767535752619,0.08665284,91280.0,91277.0,0.0489209]
[1767535753138,0.08655284,91280.0,91277.0,0.0489209]
[1767535753362,0.0317763,91280.0,91277.0,0.0489209]
[1767535753721,0.08655298,91280.0,91277.0,0.0489209]
[1767535754540,0.0317763,91280.0,91277.0,0.0489209]
[1767535755413,0.04831323,91279.0,91277.0,0.01085562]
[1767535755573,0.02192,91279.0,91276.0,0.01095578]
[1767535755774,0.04509608,91279.0,91277.0,0.01095566]
[1767535755939,0.0560515,91279.0,91275.0,0.0109559]
[1767535756134,0.02317608,91278.0,91275.0,0.06573534]
[1767535756679,0.01095506,91282.0,91275.0,0.06573534]
[1767535756680,0.02953093,91315.0,91276.0,0.01095578]
[1767535756863,0.05477512,91283.0,91278.0,0.05577639]
[1767535757075,0.06573075,91282.0,91276.0,0.01095578]
[1767535757692,0.0547761,91281.0,91276.0,0.0657342]
[1767535757914,0.06573075,91282.0,91277.0,0.06568818]
[1767535758074,0.06573075,91282.0,91281.0,0.000999]
[1767535758273,0.06573075,91282.0,91281.0,0.00095476]
[1767535758477,0.06573075,91282.0,91277.0,0.06568818]
[1767535759298,0.01095518,91281.0,91277.0,0.01091046]
[1767535759669,0.01095518,91281.0,91277.0,0.06568874]
[1767535760382,0.06573075,91282.0,91281.0,0.0499199]
[1767535760602,0.06573075,91282.0,91281.0,0.04958974]
[1767535760980,0.06573075,91282.0,91278.0,0.0499199]
[1767535761222,0.06573126,91281.0,91278.0,0.0499199]
[1767535761426,0.06573126,91281.0,91278.0,0.03887007]
[1767535761992,0.01095518,91281.0,91278.0,0.03887007]
[1767535762525,0.06573049,91282.0,91278.0,0.03887007]
[1767535762723,0.00995606,91282.0,91278.0,0.04982561]
[1767535762947,0.06473144,91282.0,91279.0,0.0499199]
[1767535763689,0.01095482,91284.0,91279.0,0.06087532]
[1767535763913,0.06572907,91284.0,91280.0,0.0499199]
[1767535764106,0.0657301,91283.0,91280.0,0.0498747]
[1767535764318,0.05477547,91282.0,91280.0,0.0498747]
[1767535765182,0.0657301,91283.0,91280.0,0.0498747]
[1767535765740,0.04831323,91281.0,91277.0,0.06573387]
[1767535765932,0.06573045,91282.0,91278.0,0.0499199]
[1767535766149,0.06573045,91282.0,91278.0,0.06058929]
[1767535766873,0.06573045,91282.0,91278.0,0.06030317]
[1767535767215,0.06573045,91282.0,91278.0,0.06001706]
[1767535767489,0.04831323,91280.0,91276.0,0.06573365]
[1767535767993,0.04831323,91280.0,91276.0,0.06568942]
[1767535768168,0.04831323,91281.0,91278.0,0.01095554]
[1767535768344,0.06573109,91281.0,91277.0,0.01095566]
[1767535768711,0.06573045,91282.0,91277.0,0.06573366]
[1767535769756,0.0328747,91285.0,91281.0,0.06573055]
[1767535769971,0.02192,91285.0,91281.0,0.01095518]
[1767535770136,0.0328747,91285.0,91281.0,0.0657306]
[1767535770332,0.0876484,91285.0,91281.0,0.01095518]
[1767535770554,0.0876484,91285.0,91280.0,0.06573164]
[1767535771378,0.0876484,91285.0,91281.0,0.0471106]
[1767535771600,0.0876484,91285.0,91281.0,0.05806578]
[1767535772390,0.0876484,91285.0,91281.0,0.05802058]
[1767535772768,0.0876484,91285.0,91281.0,0.0470654]
[1767535772969,0.0876484,91285.0,91281.0,0.05802058]
[1767535773585,0.0876484,91285.0,91281.0,0.0470654]
[1767535773794,0.0002,91287.0,91285.0,0.0471106]
[1767535774302,0.0002,91287.0,91284.0,0.06572839]
[1767535774502,0.0002,91287.0,91285.0,0.05477299]
[1767535775245,0.0002,91287.0,91286.0,0.05477291]
[1767535775373,0.0002,91287.0,91285.0,0.05472779]
[1767535775581,0.04584474,91288.0,91285.0,0.06568249]
[1767535775792,0.03287422,91289.0,91285.0,0.0109547]
[1767535776016,0.02192,91289.0,91285.0,0.11451693]
[1767535776228,0.02192,91289.0,91285.0,0.06566082]
[1767535776542,0.02192,91289.0,91286.0,0.01095458]
[1767535776747,0.02192,91289.0,91286.0,0.06572743]
[1767535777564,0.02192,91289.0,91287.0,0.05477212]
[1767535777923,0.02192,91289.0,91288.0,0.05477171]
[1767535778140,0.02192,91289.0,91287.0,0.05477212]
[1767535778553,0.02182,91289.0,91288.0,0.05477171]
[1767535779071,0.02182,91289.0,91287.0,0.05477212]
[1767535779270,0.02182,91289.0,91286.0,0.06572735]
[1767535779619,0.02182,91289.0,91287.0,0.05477216]
[1767535779826,0.02182,91289.0,91288.0,0.05477171]
[1767535780024,0.02182,91289.0,91286.0,0.06572704]
[1767535780476,0.02182,91289.0,91285.0,0.06566003]
[1767535780639,0.02182,91289.0,91286.0,0.01095458]
[1767535781387,0.06612507,91290.0,91289.0,0.000999]
[1767535781602,0.08804507,91290.0,91289.0,0.000999]
[1767535781734,0.08804507,91290.0,91285.0,0.0109547]
[1767535781735,0.01095434,91288.0,91285.0,0.04878898]
[1767535781934,0.0109547,91285.0,91281.0,0.04878898]
[1767535782156,0.0109547,91285.0,91282.0,0.04878898]
[1767535782383,0.01095458,91286.0,91283.0,0.04878898]
[1767535782552,0.01095458,91286.0,91282.0,0.06573028]
[1767535782754,0.06572752,91286.0,91281.0,0.06573098]
[1767535783187,0.0004,91290.0,91286.0,0.0657271]
[1767535783417,0.05477231,91287.0,91286.0,0.000999]
[1767535783701,0.08764552,91289.0,91286.0,0.00095477]
[1767535783995,0.01095434,91288.0,91284.0,0.01095482]
[1767535784151,0.06572697,91287.0,91282.0,0.04878898]
[1767535784350,0.01095446,91287.0,91284.0,0.04878898]
[1767535784597,0.01095446,91287.0,91284.0,0.04874498]
[1767535784907,0.06572619,91288.0,91284.0,0.0596998]
[1767535785110,0.01095434,91288.0,91284.0,0.04874498]
[1767535785475,0.01095446,91287.0,91284.0,0.04874498]
[1767535785898,0.06572656,91288.0,91284.0,0.04874498]
[1767535786287,0.08764534,91289.0,91284.0,0.11447384]
[1767535786907,0.08764534,91289.0,91285.0,0.0109547]
[1767535787125,0.035015,91288.0,91284.0,0.04166856]
[1767535787306,0.035015,91288.0,91285.0,0.06572811]
[1767535787512,0.034016,91288.0,91285.0,0.06572814]
[1767535787913,0.034016,91288.0,91286.0,0.0547729]
[1767535788194,0.034016,91288.0,91286.0,0.0547277]
[1767535788608,0.0004,91290.0,91287.0,0.06572677]
[1767535788814,0.06572367,91292.0,91290.0,0.04878898]
[1767535789031,0.07668991,91291.0,91290.0,0.04778998]
[1767535789225,0.07668991,91291.0,91290.0,0.04774343]
[1767535789566,0.0109541,91290.0,91287.0,0.04878898]
[1767535789895,0.06572512,91290.0,91287.0,0.04878898]
[1767535790752,0.05477161,91289.0,91287.0,0.04878898]
[1767535790975,0.06572512,91290.0,91287.0,0.04878898]
[1767535791772,0.0547716,91289.0,91287.0,0.04878898]
[1767535792071,0.0547716,91289.0,91287.0,0.04874378]
[1767535793659,0.06572463,91290.0,91287.0,0.04874378]
[1767535794582,0.06572463,91290.0,91286.0,0.01095458]
[1767535794820,0.01144561,91289.0,91285.0,0.06523673]
[1767535795104,0.01144561,91289.0,91286.0,0.05477291]
[1767535796034,0.01044661,91289.0,91286.0,0.06455097]
[1767535796337,0.02192,91288.0,91286.0,0.06455097]
[1767535796504,0.02192,91287.0,91286.0,0.06455097]
[1767535797403,0.0109541,91290.0,91286.0,0.06455097]
[1767535797585,0.02192,91289.0,91286.0,0.06455097]
[1767535798674,0.02182,91289.0,91286.0,0.06455097]
[1767535798821,0.02182,91289.0,91287.0,0.05477221]
[1767535799142,0.02182,91289.0,91288.0,0.04878898]
[1767535799951,0.02192,91289.0,91288.0,0.04878898]
[1767535800151,0.0002,91293.0,91290.0,0.04913433]
[1767535800354,0.0002,91293.0,91289.0,0.05477099]
[1767535800355,0.01095254,91303.0,91299.0,0.04913433]
[1767535800564,0.01095254,91303.0,91296.0,0.01095338]
[1767535800565,0.02192,91302.0,91300.0,0.0657174]
[1767535800813,0.00036047,91303.0,91301.0,0.0547635]
[1767535801028,0.02951393,91324.0,91301.0,0.0547635]
[1767535801029,1e-08,91312.0,91304.0,0.06008675]
[1767535801197,0.0001081,91312.0,91311.0,0.04163068]
[1767535801399,0.0001081,91312.0,91306.0,0.06571272]
[1767535801400,0.01095122,91314.0,91312.0,0.04063168]
[1767535801579,0.06570734,91314.0,91312.0,0.04063168]
[1767535801795,0.06570661,91315.0,91314.0,0.000999]
[1767535802003,0.08762661,91315.0,91314.0,0.000999]
[1767535802330,0.08762661,91315.0,91306.0,0.05476067]
[1767535802331,0.01095134,91313.0,91309.0,0.01095182]
[1767535802550,0.01095146,91312.0,91307.0,0.06571224]
[1767535802694,0.01095158,91311.0,91307.0,0.01095206]
[1767535802899,0.04464353,91311.0,91307.0,0.01095206]
[1767535803104,0.0328711,91315.0,91307.0,0.01095206]
[1767535803302,0.02192,91314.0,91311.0,0.01095158]
[1767535803507,0.06315005,91314.0,91311.0,0.06636617]
[1767535803790,0.01495379,91314.0,91311.0,0.06536717]
[1767535804148,0.02192,91315.0,91311.0,0.01060929]
[1767535804460,1e-08,91315.0,91314.0,0.04913433]
[1767535804667,0.02192,91317.0,91316.0,0.04913433]
[1767535805245,1e-08,91318.0,91316.0,0.04913433]
[1767535805398,0.02192,91317.0,91316.0,0.04913433]
[1767535808005,1e-08,91318.0,91317.0,0.05013333]
[1767535808205,1e-08,91318.0,91317.0,0.04913433]
[1767535808206,0.02192001,91318.0,91317.0,0.04913433]
[1767535808451,0.02192001,91318.0,91317.0,0.04797107]
[1767535808650,0.04819626,91317.0,91315.0,0.06570658]
[1767535808829,0.04719726,91317.0,91315.0,0.06561617]
[1767535809030,0.04719726,91317.0,91315.0,0.06552576]
[1767535809368,1e-08,91318.0,91315.0,0.0109511]
[1767535809568,0.01094954,91328.0,91322.0,0.04913433]
[1767535809808,0.03286918,91331.0,91322.0,0.01095026]
[1767535809809,0.04819626,91329.0,91322.0,0.01095026]
[1767535810005,0.04819626,91329.0,91326.0,0.01094978]
[1767535810190,0.07361751,91330.0,91326.0,0.04913433]
[1767535810404,0.0188709,91330.0,91326.0,0.04913433]
[1767535810606,0.01094918,91331.0,91326.0,0.06008411]
[1767535811223,0.01094918,91331.0,91324.0,0.06569894]
[1767535811224,0.01094918,91331.0,91324.0,0.01095002]
[1767535811504,0.04819626,91327.0,91324.0,0.06570013]
[1767535811644,0.04819626,91327.0,91320.0,0.0547522]
[1767535811645,0.0109499,91325.0,91320.0,0.0547522]
[1767535811850,0.05914604,91326.0,91322.0,0.01095026]
[1767535812268,0.04819626,91322.0,91318.0,0.02192]
[1767535812473,0.05914652,91322.0,91318.0,0.02192]
[1767535812683,0.06570163,91322.0,91318.0,0.02192]
[1767535812876,0.05475081,91323.0,91318.0,0.03287074]
[1767535813077,0.01095026,91322.0,91318.0,0.03287074]
[1767535813350,0.01095002,91324.0,91318.0,0.02192]
[1767535813545,0.05475081,91323.0,91318.0,0.02192]
[1767535813753,0.01095828,91323.0,91318.0,0.03272772]
[1767535813969,0.01095014,91323.0,91319.0,0.01095062]
[1767535814168,0.01095002,91324.0,91323.0,0.04913433]
[1767535814439,0.05474962,91325.0,91323.0,0.04913433]
[1767535814645,0.06569904,91326.0,91323.0,0.04913433]
[1767535815185,0.05474953,91325.0,91323.0,0.04913433]
[1767535815382,0.06569904,91326.0,91323.0,0.04913433]
[1767535815783,0.05475008,91325.0,91323.0,0.04913433]
[1767535816228,0.05475012,91324.0,91323.0,0.04913433]
[1767535816538,0.01095014,91323.0,91320.0,0.04913433]
[1767535816757,0.06570018,91324.0,91320.0,0.04913433]
[1767535816911,0.01095014,91323.0,91320.0,0.04913433]
[1767535817137,0.06570018,91324.0,91320.0,0.04913433]
[1767535817494,0.06570018,91324.0,91323.0,9.21703433]
[1767535819335,0.11389644,91324.0,91323.0,9.1679]
[1767535819537,0.06570018,91324.0,91323.0,9.1679]
[1767535819720,0.01095002,91324.0,91323.0,9.21703433]
[1767535820325,0.05474957,91325.0,91324.0,0.04913433]
[1767535820957,0.05475012,91324.0,91323.0,9.1679]
[1767535821163,0.05474957,91325.0,91324.0,0.000999]
[1767535821422,0.05474957,91325.0,91323.0,9.16785577]
[1767535821985,0.05474957,91325.0,91323.0,9.16662143]
[1767535822666,0.06569988,91326.0,91325.0,0.000999]
[1767535823091,0.05474967,91325.0,91323.0,9.16662143]
[1767535823907,0.05474967,91325.0,91323.0,9.166531]
[1767535824079,0.06569988,91326.0,91323.0,9.166531]
[1767535824283,0.06569882,91326.0,91324.0,0.04913433]
[1767535824569,0.06469982,91326.0,91323.0,9.166531]
[1767535825057,0.05474993,91325.0,91323.0,9.21566533]
[1767535825258,0.05474993,91325.0,91324.0,0.04913433]
[1767535826169,0.05464993,91325.0,91324.0,0.04913433]
[1767535826317,0.05464993,91325.0,91324.0,0.04813533]
[1767535826518,0.05475012,91324.0,91323.0,9.166531]
[1767535826768,0.05475012,91324.0,91323.0,8.627479]
[1767535826928,0.12486638,91324.0,91323.0,8.31691677]
[1767535827134,0.07667012,91324.0,91323.0,8.21392087]
[1767535827335,0.07667012,91324.0,91323.0,7.97954544]
[1767535828160,0.07667012,91324.0,91323.0,7.78740042]
[1767535829147,0.07667012,91324.0,91323.0,7.78697152]
[1767535829485,0.12486638,91324.0,91323.0,7.0483493]
[1767535829713,0.12486638,91324.0,91323.0,6.78940253]
[1767535829900,0.12486638,91324.0,91323.0,6.62015157]
[1767535830161,0.07667012,91324.0,91323.0,6.62015157]
[1767535831182,0.07667012,91324.0,91323.0,6.62005154]
[1767535831586,0.05475201,91321.0,91314.0,0.00049326]
[1767535831954,0.06570239,91321.0,91314.0,0.00049326]
[1767535832335,0.01095038,91321.0,91314.0,0.00049326]
[1767535832756,0.0109505,91320.0,91314.0,0.00049326]
[1767535833059,0.06445922,91323.0,91320.0,0.000999]
[1767535833682,0.01095026,91322.0,91314.0,0.06038014]
[1767535833888,0.06570174,91322.0,91314.0,0.04942892]
[1767535834101,0.06570174,91322.0,91314.0,0.06038014]
[1767535834305,0.01095038,91321.0,91314.0,0.04942892]
[1767535834503,0.06570243,91321.0,91314.0,0.04942892]
[1767535835126,0.06570234,91321.0,91314.0,0.04942892]
[1767535835707,0.01095038,91321.0,91314.0,0.04942892]
[1767535836215,0.06570238,91321.0,91314.0,0.04942892]
[1767535836435,0.06570195,91322.0,91314.0,0.04942892]
[1767535837041,0.06446021,91323.0,91314.0,0.04942892]
[1767535837042,0.01095014,91323.0,91314.0,0.04942892]
[1767535837364,0.02192,91324.0,91323.0,0.000999]
[1767535837569,0.02192,91324.0,91319.0,0.04893566]
[1767535837771,0.02192,91324.0,91321.0,0.04893566]
[1767535838070,0.02192,91324.0,91319.0,0.01095062]
[1767535838269,0.02192,91324.0,91318.0,0.06570391]
[1767535838485,0.02192,91323.0,91318.0,0.06570391]
[1767535838689,0.02192,91323.0,91318.0,0.01095074]
[1767535839182,0.02192,91323.0,91317.0,0.01095086]
[1767535839362,0.02192,91323.0,91318.0,0.01095074]
[1767535839565,0.02192,91323.0,91317.0,0.01095086]
[1767535839765,0.02192,91323.0,91315.0,0.0109511]
[1767535839965,0.02192,91323.0,91314.0,0.00049326]
[1767535840178,0.01095026,91322.0,91314.0,0.01144448]
[1767535840579,0.0657017,91322.0,91314.0,0.01144448]
[1767535840862,0.0657017,91322.0,91314.0,0.00049326]
[1767535841083,0.0657017,91322.0,91314.0,0.01144448]
[1767535841441,0.01095038,91321.0,91314.0,0.00049326]
[1767535841618,0.06570164,91322.0,91314.0,0.00049326]
[1767535841956,0.02192,91323.0,91315.0,0.0109511]
[1767535842097,0.02192,91323.0,91315.0,0.0647776]
[1767535842313,0.03287014,91323.0,91314.0,0.06620037]
[1767535842517,0.02192,91323.0,91315.0,0.0109511]
[1767535842753,0.03287014,91323.0,91314.0,0.06620037]
[1767535842969,0.08762099,91323.0,91315.0,0.04893566]
[1767535843213,0.03287014,91323.0,91315.0,0.04893566]
[1767535843449,0.01095026,91322.0,91315.0,0.04893566]
[1767535843864,0.02192,91323.0,91317.0,0.04893566]
[1767535844068,0.01095026,91322.0,91317.0,0.04779369]
[1767535844618,0.03287014,91323.0,91317.0,0.04779369]
[1767535845018,0.01095026,91322.0,91317.0,0.04779369]
[1767535845314,0.08762106,91323.0,91317.0,0.04779369]
[1767535845963,0.01095038,91321.0,91317.0,0.04779369]
[1767535846170,0.0657018,91322.0,91317.0,0.04779369]
[1767535846473,0.01095026,91322.0,91317.0,0.04779369]
[1767535846670,0.06570177,91322.0,91317.0,0.04779369]
[1767535846901,0.08762106,91323.0,91317.0,0.04779369]
[1767535847340,0.02192,91323.0,91317.0,0.04779369]
[1767535847535,0.00114197,91322.0,91314.0,0.06619953]
[1767535847766,0.00114197,91322.0,91316.0,0.01095098]
[1767535848273,0.02192,91323.0,91316.0,0.01095098]
[1767535848479,0.02192,91323.0,91257.0,0.25363068]
[1767535848628,0.02192,91323.0,91315.0,0.05475539]
[1767535848835,0.02192,91323.0,91316.0,0.04796532]
[1767535849076,0.02192,91323.0,91316.0,0.0589163]
[1767535849478,0.02192,91323.0,91317.0,0.05891618]
[1767535849985,0.02192,91323.0,91317.0,0.04796532]
[1767535850225,0.04536319,91322.0,91315.0,0.06570649]
[1767535850409,0.04536319,91322.0,91316.0,0.01095098]
[1767535850853,0.04536319,91322.0,91318.0,0.05475336]
[1767535851083,0.04536319,91325.0,91320.0,0.05475248]
[1767535851287,0.04536319,91325.0,91321.0,0.05475177]
[1767535851496,0.04536319,91325.0,91319.0,0.01095062]
[1767535851706,0.04536319,91325.0,91320.0,0.0109505]
[1767535851909,0.04536319,91325.0,91321.0,0.01095038]
[1767535852124,0.04536319,91325.0,91322.0,0.06570157]
[1767535852662,0.04536319,91325.0,91320.0,0.0109505]
[1767535852873,0.04536319,91325.0,91321.0,0.01095038]
[1767535853086,0.04536319,91325.0,91322.0,0.01095026]
[1767535853605,0.04536319,91325.0,91321.0,0.01095038]
[1767535853915,0.02192,91326.0,91322.0,0.05891558]
[1767535854129,0.02192,91326.0,91322.0,0.01095026]
[1767535854312,0.02192,91327.0,91326.0,0.04796532]
[1767535854558,0.02192,91327.0,91326.0,0.04696632]
[1767535855169,0.02192,91327.0,91323.0,0.05891546]
[1767535855422,0.020921,91327.0,91323.0,0.04796532]
[1767535856050,0.020921,91327.0,91323.0,0.05891546]
[1767535856361,0.020921,91327.0,91323.0,0.04796532]
[1767535856756,0.020921,91327.0,91323.0,0.05891546]
[1767535856963,0.020921,91327.0,91325.0,0.04796532]
[1767535857608,0.02192,91327.0,91325.0,0.04796532]
[1767535857847,0.02192,91327.0,91325.0,0.04696632]
[1767535859521,0.02192,91327.0,91322.0,0.04796532]
[1767535860376,0.02192,91327.0,91322.0,0.01095026]
[1767535860494,0.04954659,91326.0,91322.0,0.01095026]
[1767535860708,0.04854759,91326.0,91322.0,0.01095026]
[1767535861115,0.04854759,91326.0,91323.0,0.06570033]
[1767535861346,0.04854759,91326.0,91322.0,0.01095026]
[1767535862033,0.01094858,91336.0,91327.0,0.01094966]
[1767535862241,0.01094882,91334.0,91326.0,0.0209237]
[1767535862414,0.000999,91327.0,91326.0,0.00997392]
[1767535862614,0.01094882,91334.0,91322.0,0.01095026]
[1767535862615,0.01094894,91333.0,91322.0,0.01095026]
[1767535862840,0.01094894,91333.0,91318.0,0.22996495]
[1767535862841,0.01094942,91329.0,91321.0,0.01095038]
[1767535863043,0.06569878,91326.0,91314.0,0.01095122]
[1767535863362,0.01094978,91326.0,91317.0,0.05475426]
[1767535863562,0.01094978,91326.0,91318.0,0.01095074]
[1767535863888,0.06569805,91327.0,91319.0,0.01095062]
[1767535864518,0.01094966,91327.0,91319.0,0.01095062]
[1767535864925,0.01094966,91327.0,91321.0,0.04643798]
[1767535865266,0.01094942,91329.0,91321.0,0.05738836]
[1767535865655,0.08761596,91330.0,91323.0,0.04643798]
[1767535865953,0.01094942,91329.0,91323.0,0.04643798]
[1767535867471,0.04954659,91329.0,91323.0,0.01095014]
[1767535867688,0.04954659,91329.0,91323.0,0.01080723]
[1767535867890,0.04954659,91329.0,91323.0,0.01095014]
[1767535868423,0.04954659,91329.0,91321.0,0.06570229]
[1767535868605,0.04954659,91329.0,91322.0,0.01095026]
[1767535869121,0.06049601,91329.0,91321.0,0.06570229]
[1767535869672,0.06049601,91329.0,91321.0,0.01095038]
[1767535869673,0.06049613,91328.0,91321.0,0.01095038]
[1767535869813,0.04954659,91328.0,91321.0,0.01095038]
[1767535870162,0.01094942,91329.0,91322.0,0.04643798]
[1767535870860,0.06049601,91329.0,91322.0,0.01095026]
[1767535871068,0.04954659,91328.0,91320.0,0.06570288]
[1767535871250,0.04954659,91328.0,91321.0,0.01095038]
[1767535871405,0.06049613,91328.0,91320.0,0.06570288]
[1767535871802,0.06049613,91328.0,91320.0,0.0109505]
[1767535872002,0.04954659,91328.0,91321.0,0.01095038]
[1767535872203,0.06049613,91328.0,91320.0,0.06570254]
[1767535872407,0.04954659,91326.0,91320.0,0.0109505]
[1767535872607,0.04954659,91323.0,91319.0,0.01095062]
[1767535872889,0.04954659,91323.0,91321.0,0.0009]
[1767535874295,0.04954659,91323.0,91322.0,0.05475131]
[1767535874492,0.04954659,91323.0,91321.0,0.0009]
[1767535874719,0.04558724,91323.0,91321.0,0.0009]
[1767535875300,0.01094942,91329.0,91321.0,0.01185038]
[1767535875503,0.06569682,91329.0,91322.0,0.04643798]
[1767535875708,0.01094942,91329.0,91322.0,0.05738824]
[1767535875912,0.0656966,91329.0,91322.0,0.04643798]
[1767535876134,0.01094942,91329.0,91322.0,0.05738824]
[1767535876386,0.01094942,91329.0,91322.0,0.05724533]